Cogmind - Beta 13 @@@ ROGUE MODE // 2024.05.10 @ 15:35:36 Player: Compound1080 Result: Destroyed by B-75 Beast with Heavy Machine Gun Performance ------------- Evolutions (4) 2000 Regions Visited (8) 1600 Robots Destroyed (68) 340 Value Destroyed (1345) 1345 Prototype IDs (23) 460 Alien Tech Used (0) 0 Bonus (300) 300 TOTAL SCORE: 6045 Bonus ------- Aligned with FarCom 300 Cogmind --------- Core Integrity 0/850 Matter 171/300 Energy 100/100 System Corruption 0% Temperature Cool (18) Movement Core (350) Ox6 Location -6/Extension Parts ------- > --- POWER (2) -------- (None) > --- PROPULSION (4) --- (None) > --- UTILITY (7) ------ Large Storage Unit Visual Processing Unit > --- WEAPON (2) ------- (None) > --- INVENTORY (15) --- Light Ion Engine Light Nuclear Core Enhanced Nuclear Core Cesium-ion Thruster Faulty Improved VTOL Module Xenon Bombardment Thruster Medium Storage Unit Superbattery (1500) Heavy Rocket Launcher Powered Hammer Peak State ------------ > --- POWER ------------ Micro Nuclear Core Micro Nuclear Core > --- PROPULSION ------- Improved Hover Unit Combat Airjet Combat Airjet Combat Airjet > --- UTILITY ---------- Large Storage Unit Structural Scanner Visual Processing Unit Transmission Jammer Hardened Light Armor Plating System Shield > --- WEAPON ----------- Heavy Rocket Launcher Spear > --- INVENTORY -------- Light Nuclear Core Enhanced Nuclear Core Gravmag System Cesium-ion Thruster Improved VTOL Module Xenon Bombardment Thruster Medium Storage Unit Superbattery Improved Grenade Launcher Powered Hammer [Rating: 50] Favorites ----------- Power Light Nuclear Core Engine Ion Engine Power Core Light Nuclear Core Propulsion Light Treads Treads Light Treads Leg Aluminum Leg Hover Unit Combat Airjet Utility Large Storage Unit Device Structural Scanner Storage Large Storage Unit Processor Visual Processing Unit Hackware System Shield Protection Hardened Light Armor Plating Weapon Medium Laser Energy Gun Medium Laser Ballistic Gun Light Assault Rifle Launcher Heavy Rocket Launcher Impact Weapon Great Maul Piercing Weapon Spear Build | -11 -10 -10 -10 -9 -8 -7 -6 -6 ------- Run | Yrd Mat Min Exi Min Mat Fac Fac Ext Slots Evolved 8 | . . . . . 4 2 2 . Power 1 | . . . . . . 1 . . Propulsion 2 | . . . . . 2 . . . Utility 5 | . . . . . 2 1 2 . Weapon . | . . . . . . . . . Parts Attached 52 | 6 7 5 1 3 10 13 1 6 Power 9 | 1 1 . . 1 2 2 . 2 Engine 3 | 1 1 . . . 1 . . . Core 6 | . . . . 1 1 2 . 2 Reactor . | . . . . . . . . . Propulsion 14 | 2 . . . . 7 4 . 1 Treads 7 | 2 . . . . 5 . . . Leg 2 | . . . . . 2 . . . Wheel . | . . . . . . . . . Hover 5 | . . . . . . 4 . 1 Flight . | . . . . . . . . . Utility 15 | 1 4 2 . 1 1 5 1 . Device 7 | . 2 2 . 1 1 . 1 . Storage 3 | 1 2 . . . . . . . Processor 3 | . . . . . . 3 . . Hackware 1 | . . . . . . 1 . . Protection 1 | . . . . . . 1 . . Artifact . | . . . . . . . . . Weapon 14 | 2 2 3 1 1 . 2 . 3 Energy Gun 6 | 2 1 3 . . . . . . Energy Cannon . | . . . . . . . . . Ballistic Gun 1 | . . . . 1 . . . . Ballistic Cannon . | . . . . . . . . . Launcher 5 | . 1 . 1 . . . . 3 Special Weapon . | . . . . . . . . . Impact Weapon 1 | . . . . . . 1 . . Slashing Weapon . | . . . . . . . . . Piercing Weapon 1 | . . . . . . 1 . . Special Melee Weapon . | . . . . . . . . . Unidentified Prototypes . | . . . . . . . . . Corrupted Parts 1 | . . . . . 1 . . . System Corruption 2 | . . . . . 2 . . . Parts Lost 18 | . 1 1 . . 2 . . 14 Power 5 | . 1 . . . . . . 4 Propulsion 6 | . . . . . 2 . . 4 Utility 4 | . . . . . . . . 4 Weapon 3 | . . 1 . . . . . 2 Highest Loss Streak 12 | . 1 1 . . 1 . . 12 To Critical Strikes . | . . . . . . . . . Average Slot Usage (%) 91 | . 99 99 100 100 86 80 85 82 Engine 7 | . 13 14 14 9 6 . . . Core 3 | . . . . 4 2 8 13 10 Treads 22 | . 28 28 28 28 33 . . . Hover 6 | . . . . . . 27 26 24 Device 13 | . 13 14 14 14 15 8 12 12 Storage 10 | . 14 14 14 14 9 7 6 6 Processor 1 | . . . . . . 7 6 6 Hackware 1 | . . . . . . 4 6 5 Protection 1 | . . . . . . 5 6 5 Energy Gun 13 | . 27 27 28 14 9 . . . Ballistic Gun 4 | . . . . 14 9 . . . Piercing Weapon 1 | . . . . . . 6 6 5 Naked Turns . | . . . . . . . . . Heaviest Build 46 | 11 30 31 31 31 34 38 39 46 Greatest Support 82 | 40 40 40 40 40 82 62 43 45 Greatest Overweight (x) 7 | 3 . . . . 1 . . 7 Average Overweight (x) . | . . . . . . . . . Largest Inventory Capacity 15 | 8 15 15 15 15 15 15 15 15 Average Capacity 14 | 7 12 15 15 15 15 15 15 15 Most Carried 15 | 3 12 15 15 15 15 15 13 13 Average Carried 12 | 1 8 13 14 14 14 10 12 12 Final Capacity 15 | 8 15 15 15 15 15 15 15 15 Final Carried 15 | 3 12 15 15 15 15 12 13 10 Class Distribution -------------------- 44% | Mutant 35% | Scavenger-Mutant 11% | Scavenger-Scout 8% | Scavenger-Ninja Dominant Class ---------------- Mutant | -10/Materials Mutant | -10/Mines Mutant | -10/Exiles Mutant | -9/Mines Scavenger-Mutant | -8/Materials Scavenger-Scout | -7/Factory Scavenger-Ninja | -6/Factory Scavenger-Ninja | -6/Extension Resources | -11 -10 -10 -10 -9 -8 -7 -6 -6 ----------- Run | Yrd Mat Min Exi Min Mat Fac Fac Ext Matter Collected 841 | 260 110 57 . 82 127 134 20 51 Remotely . | . . . . . . . . . Salvage Created 1833 | . 472 243 . 173 384 224 89 248 Parts 138 | . 32 13 . 15 20 19 8 31 Haulers Intercepted . | . . . . . . . . . Recyclers Shooed 3 | . 1 . . . . 1 1 . Parts Field Recycled . | . . . . . . . . . Retrieved Matter . | . . . . . . . . . Parts Self-Destructed . | . . . . . . . . . Prevented . | . . . . . . . . . Kills | -11 -10 -10 -10 -9 -8 -7 -6 -6 ------- Run | Yrd Mat Min Exi Min Mat Fac Fac Ext Combat Hostiles Destroyed 32 | . 10 7 . 4 6 1 . 4 Melee 1 | . . . . . . 1 . . Guns 24 | . 7 7 . 4 6 . . . AOE 7 | . 3 . . . . . . 4 Classes Destroyed 12 | . 7 . . 1 1 2 . 1 Worker 13 | . . . . . . 3 3 7 Builder 13 | . 1 2 . 2 2 . 1 5 Tunneler 2 | . 1 . . . 1 . . . Recycler 3 | . 1 . . . . 1 . 1 Operator 1 | . 1 . . . . . . . Watcher 5 | . 1 . . . . 2 . 2 Swarmer 9 | . 3 3 . . . . . 3 Grunt 16 | . 7 4 . 3 2 . . . Sentry 4 | . . . . . 4 . . . Hunter 1 | . . . . . . . . 1 Programmer 1 | . . . . . . 1 . . Assembled 1 | . . . . 1 . . . . Best Kill Streak 16 | . 3 3 . 3 1 2 3 16 Combat Bots Only 3 | . 3 3 . 3 1 1 . 3 Max Kills in Single Turn 4 | . 1 2 . 1 1 1 1 4 Gunslinging 1 | . . 1 . . . . . . Exploded 1 | . 1 . . . . . . 1 Melee 1 | . . . . . . 1 . . Uniques/NPCs Destroyed . | . . . . . . . . . Combat | -11 -10 -10 -10 -9 -8 -7 -6 -6 -------- Run | Yrd Mat Min Exi Min Mat Fac Fac Ext Hostile Shots Fired 344 | . 47 22 . 9 55 10 . 201 Missed 114 | . 9 5 . 2 12 2 . 84 Damage Taken 3520 | . 410 183 . 114 667 118 . 2028 Core 1142 | . 68 73 . 27 60 45 . 869 Absorbed by Shields . | . . . . . . . . . Core Remaining (%) 78 | 100 . . . 32 89 93 . . Volleys Fired 150 | 1 49 21 . 10 55 . . 14 Largest 2 | 2 2 2 . 2 2 . . 1 Hottest 105 | 80 80 105 . 70 70 . . 39 Shots Fired 276 | 2 90 40 . 20 110 . . 14 Gun 258 | 2 86 40 . 20 110 . . . Cannon . | . . . . . . . . . Launcher 18 | . 4 . . . . . . 14 Special . | . . . . . . . . . Kinetic 65 | . . . . 10 55 . . . Thermal 144 | 1 44 34 . 10 55 . . . Explosive 18 | . 4 . . . . . . 14 Electromagnetic 49 | 1 42 6 . . . . . . Robot Hit Streak 21 | . 8 10 . 15 21 . . 2 Robot Miss Streak 4 | . 3 4 . 1 3 . . 2 Penetration Max . | . . . . . . . . . Secondary Targets 2 | . . 1 . 1 . . . . Max Gunslinging Chain 1 | . . 1 . 1 . . . . Shots Hit Robots 205 | . 55 25 . 16 83 12 6 8 Core Hits 113 | . 24 13 . 11 26 5 4 30 Critical Kills . | . . . . . . . . . Critical Parts Destroyed 1 | . . . . . 1 . . . Critical Strikes 8 | . . . . 2 4 1 1 . Burn 5 | . . . . 2 3 . . . Destroy 1 | . . . . . 1 . . . Impale 2 | . . . . . . 1 1 . Melee Attacks 54 | . . . . . . 40 9 5 Impact 1 | . . . . . . 1 . . Slashing . | . . . . . . . . . Piercing 53 | . . . . . . 39 9 5 Sneak Attacks 14 | . . . . . . 4 6 4 Combat Hostiles . | . . . . . . . . . Follow-up Attacks . | . . . . . . . . . Damage Inflicted 4874 | . 859 372 . 168 876 486 353 1760 Guns 2016 | . 663 318 . 168 867 . . . Cannons . | . . . . . . . . . Explosions 1748 | . 194 42 . . . . . 1512 Melee 1087 | . . . . . . 486 353 248 Ramming 23 | . 2 12 . . 9 . . . Kinetic 376 | . . . . 67 309 . . . Thermal 1258 | . 290 309 . 101 558 . . . Explosive 1706 | . 194 . . . . . . 1512 Electromagnetic 424 | . 373 51 . . . . . . Impact 50 | . . . . . . 50 . . Slashing . | . . . . . . . . . Piercing 1037 | . . . . . . 436 353 248 Highest Corruption 2 | . 1 1 1 1 2 1 . . Average Corruption 1 | . 1 1 1 1 2 1 . . Corruption Purged . | . . . . . . . . . Corruption Blocked . | . . . . . . . . . Effects 30 | . 4 12 3 6 1 4 . . Message Errors 12 | . 2 3 . 3 1 3 . . Matter Fused 5 | . . 2 2 1 . . . . Heat Flow Errors 4 | . . 3 . . . 1 . . Energy Discharges 2 | . 2 . . . . . . . Data Loss (minor) 4 | . . 1 1 2 . . . . Data Loss (major) 2 | . . 2 . . . . . . Misfires 1 | . . 1 . . . . . . Overload Shots . | . . . . . . . . . Overflow Damage 231 | . . . . . . 89 8 134 Projectiles . | . . . . . . . . . Explosions 71 | . . . . . . . . 71 Melee 160 | . . . . . . 89 8 63 Knockbacks 1 | . . 1 . . . . . . Impact 1 | . . 1 . . . . . . Kinetic . | . . . . . . . . . Secondary . | . . . . . . . . . Self-Inflicted Damage 26 | . . . . . . . . 26 Shots 1 | . . . . . . . . 1 Rammed 5 | . 1 2 . . 2 . . . Targets Rammed 5 | . 1 2 . . 2 . . . Kicked . | . . . . . . . . . Crushed . | . . . . . . . . . Highest Temperature 304 | 18 270 304 . 13 103 268 . 12 Average Temperature 60 | 12 65 87 . 6 31 126 . 3 Received Heat Transfer 735 | . 174 84 . 27 288 . . 162 Effects 1 | . . 1 . . . . . . Short Circuit 1 | . . 1 . . . . . . Siege Activations . | . . . . . . . . . Robots Corrupted 1 | . 1 . . . . . . . Combat Hostiles . | . . . . . . . . . Parts Fried 6 | . 5 . . . . 1 . . Impact Corruptions 1 | . . . . . . 1 . . Robots Melted . | . . . . . . . . . Combat Hostiles . | . . . . . . . . . Parts Melted 5 | . . . . . 5 . . . Heat Transferred 3613 | . 662 620 . 444 1887 . . . Parts Sabotaged . | . . . . . . . . . Parts Stolen . | . . . . . . . . . Parts Stripped . | . . . . . . . . . Power Chain Reactions 1 | . . 1 . . . . . . Alert | -11 -10 -10 -10 -9 -8 -7 -6 -6 ------- Run | Yrd Mat Min Exi Min Mat Fac Fac Ext Peak Influence 351 | . 178 139 . 80 146 80 105 351 Initial 69 | . . 69 . . 31 24 9 51 Average 53 | . 88 69 . 23 35 37 48 145 Maximum Alert Level 1 | . . . . . . . . 1 Low Security (%) 98 | 100 100 100 . 100 100 100 100 59 Level 1 1 | . . . . . . . . 40 Level 2 . | . . . . . . . . . Level 3 . | . . . . . . . . . Level 4 . | . . . . . . . . . Level 5 . | . . . . . . . . . High Security . | . . . . . . . . . Max Security . | . . . . . . . . . Squads Dispatched 7 | . 2 . . . 2 1 1 1 Investigation 1 | . 1 . . . . . . . Extermination 1 | . . . . . . 1 . . Reinforcement 4 | . 1 . . . 1 . 1 1 Assault . | . . . . . . . . . Garrison 1 | . . . . . 1 . . . Intercept . | . . . . . . . . . Searches Triggered . | . . . . . . . . . Construction Impeded 1 | . . . . . . . . 1 Haulers Reinforced . | . . . . . . . . . Active Scanning Responses . | . . . . . . . . . Cargo Convoy Interrupts . | . . . . . . . . . Stealth | -11 -10 -10 -10 -9 -8 -7 -6 -6 --------- Run | Yrd Mat Min Exi Min Mat Fac Fac Ext Distress Signals 6 | . 1 . . . 1 1 1 2 Communications Jammed 6 | . . . . . . . . 6 Distress Signals 6 | . . . . . . . . 6 Times Spotted 69 | . 14 8 . 4 20 6 4 13 Peak Tracking Total 6 | . 3 3 . 3 3 2 4 6 Tactical Retreats 3 | . . 1 . . . 1 1 . Traps | -11 -10 -10 -10 -9 -8 -7 -6 -6 ------- Run | Yrd Mat Min Exi Min Mat Fac Fac Ext Traps Triggered 3 | . 1 . . . 1 . . 1 Indirectly . | . . . . . . . . . Trap Hack Attempts . | . . . . . . . . . Triggered . | . . . . . . . . . Disarmed . | . . . . . . . . . Reprogrammed . | . . . . . . . . . Reused . | . . . . . . . . . Traps Extracted . | . . . . . . . . . Installed . | . . . . . . . . . Triggered . | . . . . . . . . . Machines | -11 -10 -10 -10 -9 -8 -7 -6 -6 ---------- Run | Yrd Mat Min Exi Min Mat Fac Fac Ext Machines Disabled 3 | . 2 1 . . . . . . Max in Single Turn 1 | . 1 . . . . . . . Garrison Access 1 | . . . . . 1 . . . Machines Repaired . | . . . . . . . . . Machines Dismantled . | . . . . . . . . . Machines Sabotaged . | . . . . . . . . . Overloaded Fab Kills . | . . . . . . . . . Hacking | -11 -10 -10 -10 -9 -8 -7 -6 -6 --------- Run | Yrd Mat Min Exi Min Mat Fac Fac Ext Machines Accessed 15 | . 3 . 1 . 4 2 5 . Terminals 13 | . 3 . . . 3 2 5 . Fabricators . | . . . . . . . . . Repair Stations . | . . . . . . . . . Recycling Units . | . . . . . . . . . Scanalyzers . | . . . . . . . . . Garrison Access 1 | . . . . . 1 . . . Total Hacks 32 | . 7 . 1 . 6 2 16 . Successful 13 | . 2 . 1 . 3 . 7 . Failed 19 | . 5 . . . 3 2 9 . Catastrophic 2 | . . . . . . . 2 . Database Lockouts . | . . . . . . . . . Manual 7 | . 4 . 1 . 1 1 . . Terminals 30 | . 7 . . . 5 2 16 . Fabricators . | . . . . . . . . . Repair Stations . | . . . . . . . . . Recycling Units . | . . . . . . . . . Scanalyzers . | . . . . . . . . . Garrison Access 1 | . . . . . 1 . . . Terminal Hacks 11 | . 1 . 1 . 2 . 7 . Record 6 | . . . . . . . 6 . Branch Access Points 2 | . 1 . . . . . 1 . Hauler Manifests 1 | . . . . . 1 . . . Zone Layout 1 | . . . . . 1 . . . Derelict Proto ID Bank 1 | . . . 1 . . . . . Fabricator Hacks . | . . . . . . . . . Repair Station Hacks . | . . . . . . . . . Recycling Unit Hacks . | . . . . . . . . . Scanalyzer . | . . . . . . . . . Garrison Access Hacks 1 | . . . . . 1 . . . Seal Access 1 | . . . . . 1 . . . Unauthorized Hacks 1 | . 1 . . . . . . . Terminals 1 | . 1 . . . . . . . Track 1 | . 1 . . . . . . . Fabricators . | . . . . . . . . . Repair Stations . | . . . . . . . . . Recycling Units . | . . . . . . . . . Scanalyzers . | . . . . . . . . . Garrison Access . | . . . . . . . . . Data Cores Recovered . | . . . . . . . . . Used . | . . . . . . . . . Hacking Detections 12 | . 3 . . . 2 2 5 . Full Trace Events . | . . . . . . . . . Feedback Events . | . . . . . . . . . Feedback Blocked . | . . . . . . . . . Robot Schematics Acquired . | . . . . . . . . . Robots Built . | . . . . . . . . . Authchips . | . . . . . . . . . Time . | . . . . . . . . . Total Robot Build Rating . | . . . . . . . . . Part Schematics Acquired . | . . . . . . . . . Parts Built . | . . . . . . . . . Authchips . | . . . . . . . . . Time . | . . . . . . . . . Total Part Build Rating . | . . . . . . . . . Parts Repaired . | . . . . . . . . . Time . | . . . . . . . . . Parts Recycled . | . . . . . . . . . Recycled Matter . | . . . . . . . . . Retrieved Matter . | . . . . . . . . . Retrieved Components . | . . . . . . . . . Parts Scanalyzed . | . . . . . . . . . Part Schematics Acquired . | . . . . . . . . . Parts Damaged . | . . . . . . . . . Bothacking | -11 -10 -10 -10 -9 -8 -7 -6 -6 ------------ Run | Yrd Mat Min Exi Min Mat Fac Fac Ext Used RIF Installer . | . . . . . . . . . Robots Hacked . | . . . . . . . . . Non-combat . | . . . . . . . . . Combat . | . . . . . . . . . Robot Hacks Applied . | . . . . . . . . . Relay Couplers Released . | . . . . . . . . . Fabnet Peak Effective % . | . . . . . . . . . Robots Rewired . | . . . . . . . . . Allies Hacked . | . . . . . . . . . Hacks Repelled . | . . . . . . . . . Allies | -11 -10 -10 -10 -9 -8 -7 -6 -6 -------- Run | Yrd Mat Min Exi Min Mat Fac Fac Ext Total Allies 3 | . . 3 . . . . . . Largest Group 3 | . . 3 . . . . . . Highest-Rated Group 40 | . . 40 . . . . . . Highest-Rated Ally 16 | . . 16 . . . . . . Total Orders . | . . . . . . . . . Ally Attacks 23 | . . 23 . . . . . . Total Damage 221 | . . 221 . . . . . . Kills . | . . . . . . . . . Allies Corrupted . | . . . . . . . . . Allies Melted . | . . . . . . . . . Intel | -11 -10 -10 -10 -9 -8 -7 -6 -6 ------- Run | Yrd Mat Min Exi Min Mat Fac Fac Ext Robot Analysis Total . | . . . . . . . . . Derelict Logs Recovered 2 | . . 1 . 1 . . . . Drone Launches . | . . . . . . . . . Drone Recoveries . | . . . . . . . . . Exploration | -11 -10 -10 -10 -9 -8 -7 -6 -6 ------------- Run | Yrd Mat Min Exi Min Mat Fac Fac Ext Turns Passed 6687 | 71 790 1149 362 642 1942 1102 321 308 Spaces Moved 3754 | 38 381 654 225 133 544 1038 454 287 Core 12 | 8 . . . . . . . 4 Treads 1973 | 30 381 654 225 133 544 6 . . Legs . | . . . . . . . . . Wheels . | . . . . . . . . . Hover 1769 | . . . . . . 1032 454 283 Flight . | . . . . . . . . . Fastest Speed 50 | 50 160 160 160 160 152 65 65 65 Average Speed 116 | 151 160 160 160 160 156 69 65 71 Slowest Speed 400 | 200 160 160 160 160 240 155 65 400 Overloaded Moves . | . . . . . . . . . Propulsion Burnouts . | . . . . . . . . . Robots Hopped . | . . . . . . . . . Cave-ins Triggered . | . . . . . . . . . Exploration Rate (%) 39 | 4 40 88 60 32 47 22 20 40 Regions Visited 8 Branch Regions 4 Pre-discovered Areas . | . . . . . . . . . Known Exits Taken 3 | . 1 . . . 1 . 1 . Unknown Exits Taken 5 | 1 . 1 1 1 . 1 . . Scrap Searched 1 | . . 1 . . . . . . Spaces Dug 17 | . . . . . . 15 1 1 Terrain Destroyed 151 | . 32 4 . . . 15 1 99 Melee 17 | . . . . . . 15 1 1 Projectile . | . . . . . . . . . AOE 134 | . 32 4 . . . . . 98 Terrain Rammed . | . . . . . . . . . Walls Destroyed . | . . . . . . . . . Machines Disabled . | . . . . . . . . . Actions | -11 -10 -10 -10 -9 -8 -7 -6 -6 --------- Run | Yrd Mat Min Exi Min Mat Fac Fac Ext Total 5744 | 47 470 718 227 546 1537 1365 464 370 Wait 1636 | . 19 26 . 391 907 252 . 41 Move 3746 | 37 380 653 224 132 543 1037 453 287 Hop . | . . . . . . . . . Pick Up 43 | 3 11 6 1 4 8 8 1 1 Fast Attach 24 | 6 1 3 . 2 5 6 1 . Attach 20 | . 2 2 . . 3 7 . 6 Detach 6 | . 1 . . . 2 1 . 2 Swap 8 | . 4 . 1 1 2 . . . Drop 39 | . 2 5 1 6 10 14 . 1 Fire 150 | 1 49 21 . 10 55 . . 14 Melee 54 | . . . . . . 40 9 5 Ram . | . . . . . . . . . Kick . | . . . . . . . . . Crush 5 | . 1 2 . . 2 . . . Escape Stasis 13 | . . . . . . . . 13 Rewire . | . . . . . . . . . Trap . | . . . . . . . . . Miscellaneous . | . . . . . . . . . Route ------- -11/Scrapyard -10/Materials (discovered 3 exits: [*Mat] / *Min x2) -10/Mines (discovered 3 exits: [*Mat x2] / *Exi) -10/Exiles -9/Mines -8/Materials -7/Factory -6/Factory (discovered 4 exits: Low x2 / *Ext x2) -6/Extension History --------- Turn | Location | Event 30 | -11/Scrapyard | Discovered new exit (range 14) 72 | -11/Scrapyard | Entered Materials 303 | -10/Materials | Build established: Mutant 324 | -10/Materials | Discovered new exit (range 6) 482 | -10/Materials | Discovered new exit (range 15) 733 | -10/Materials | Identified exit to Mines 862 | -10/Materials | Entered Mines 862 | -10/Mines | Discovered new exit (range 14) 1134 | -10/Mines | Assisted by bots powering up and referring to "LRC-V3" 1296 | -10/Mines | Received a Rocket Launcher from a helpful Derelict 1378 | -10/Mines | Lost 3 allies 1405 | -10/Mines | Core integrity fell below 50% 1815 | -10/Mines | Learned Materials emergency access door positions 1893 | -10/Mines | Discovered new exit (range 5) 2005 | -10/Mines | Deemed a non-threat by the Exiles lab entrance 2005 | -10/Mines | Discovered new exit (range 5) 2011 | -10/Mines | Entered Exiles 2051 | -10/Exiles | Met 8R-AWN 2080 | -10/Exiles | Met EX-HEX 2147 | -10/Exiles | Met EX-BIN 2165 | -10/Exiles | Aligned with FarCom system 2167 | -10/Exiles | Given EX-Vault access code 2203 | -10/Exiles | Opened EX-Vault 2215 | -10/Exiles | Found Superbattery 2248 | -10/Exiles | Warned to stay clear of 0b10 Research branches 2299 | -10/Exiles | Met EX-DEC 2352 | -10/Exiles | Discovered new exit (range 14) 2373 | -10/Exiles | Left Exiles lab with Superbattery 2373 | -10/Exiles | Entered Mines 2408 | -9/Mines | Assembled infested the area 2434 | -9/Mines | Met a Derelict bent on vengeance 2838 | -9/Mines | Learned 2 Materials zone layouts 3009 | -9/Mines | Discovered new exit (range 5) 3015 | -9/Mines | Entered Materials 3015 | -8/Materials | Evolved 4 slots: Propulsion x2, Utility x2 3016 | -8/Materials | Identified exit to Factory 3156 | -8/Materials | Garrison activated, responded to threat 3296 | -8/Materials | Build established: Scavenger-Mutant 4957 | -8/Materials | Entered Factory 4957 | -7/Factory | Evolved 2 slots: Power x1, Utility x1 5632 | -7/Factory | Build established: Scavenger-Scout 6032 | -7/Factory | Discovered new exit (range 14) 6059 | -7/Factory | Entered another Factory area 6059 | -6/Factory | Evolved 2 slots: Utility x2 6247 | -6/Factory | Identified exit to Lower Caves 6247 | -6/Factory | Identified exit to Extension 6372 | -6/Factory | Build established: Scavenger-Ninja 6380 | -6/Factory | Entered Extension 6630 | -6/Extension | Disrupted transfer network 6648 | -6/Extension | Spotted B-75 Beast 6656 | -6/Extension | Spotted B-75 Beast 6681 | -6/Extension | Core integrity fell below 50% 6687 | -6/Extension | Core integrity fell below 20% 6688 | -6/Extension | Destroyed by B-75 Beast with Heavy Machine Gun Last Messages --------------- 06668_ Penetrated by Slug. 06669_ Gravmag System destroyed. 06669_ Structural Scanner destroyed. 06669_ Imp. Grenade Launcher destroyed. 06670_ Penetrated by Slug. 06670_ Cmb. Airjet destroyed. 06670_ Transmission Jammer destroyed. 06671_ Mic. Nuclear Core destroyed. 06671_ Penetrated by Slug. 06672_ Acquired 9 matter. 06673_ Penetrated by Slug. 06673_ System Shield destroyed. 06674_ Cmb. Airjet destroyed. 06674_ Mic. Nuclear Core destroyed. 06674_ Cmb. Airjet destroyed. 06674_ Slug penetrates Wall. 06677_ Penetrated by Slug. 06677_ Spear destroyed. 06678_ Penetrated by Slug. 06685_ K-01 Serf destroyed. Map ----- +----------------------------------------------------+ | ?????????????????????????????????????????????????? | | ?????????????????????????????????????????????????? | | ?????????????????????????????????????????????????? | | ?????????????????????????????????????????????????? | | ?????????????????????????????????????????????????? | | ?????????????????????????????????????????????????? | | ?????????????????????????????????????????????????? | | ????? ???????????????????????????????????????????? | | ????? ?????????? ????????????????????????????????? | | ????? ?????????? ????????????????????????????????? | | ???## ##??????## ##??????????????????????????????? | | ???## ##??????## ##??????????????????????????????? | | ???## ##??????## ##??????????????????????????????? | | ???## ##??????## ##??????????????????????????????? | | ???## ##??????## ##??????????????????????????????? | | ??### ##??????## ##??????????????????????????????? | | ??### ##??###### ##??????????????????????????????? | | ??##" ########## ##??????????????????????????????? | | ?#### ######"### ####????????????????????????????? | | ?#### ### ## ### ####????????????????????????????? | | ?##"" ""% "" ""##????????????????????????????? | | ?## " [ " ##????????????????????????????? | | ### w ##????????????????????????????? | | ### "#########????????????????????? | | "#= ##;;;##############???????????? | | %= Y @ % ??????? | | % u ??????? | | BB % ??????? | | % BBBB % h ???????? | | R BB R u R h C??????? | | ### ######################????????? | | ### ################??????????????? | | ?## ##????????????????????????????? | | ?## ##????????????????????????????? | | ?## ##????????????????????????????? | | ?#######T#"""########????????????????????????????? | | ?######### ? ########????????????????????????????? | | ??????#####??????????????????????????????????????? | | | | | | | | | | | | | | | | | | | | | | | | | +----------------------------------------------------+ Best States ------------- Heat Dissipation 44 Energy Generation 25 Energy Capacity 275 Matter Stores 300 Matter Capacity 300 Sight Range 18 Terrain Scan Range 16 Terrain Scan Density 410 Jamming Range 12 Armor Coverage 150 Evasion (%) 52 Recoil Reduction 4 Defensive Hacking 10 Item Schematics ----------------- None Robot Schematics ------------------ None Fabricated ------------ Nothing Alien Tech Used ----------------- None Achievements -------------- I Survived The Infestation True Hacker Challenges ------------ None Game ------ Seed BiocellBottomlessBeamcaster Manual? 0 Play Time 01:19:01 Cumulative 18.5 hours Start 2024.05.08 @ 20:09:28 End 2024.05.10 @ 15:35:36 Sessions 3 Manual Loads 0 Difficulty Rogue Special Mode None Game No. 35 Rogue 35 Adventurer 0 Explorer 0 Win Type - Total 0 Types 0/0/0/0/0/0/0/0/0 Lore% 18 Gallery% 19 Achievement% 18 Wizard Run 0 Options --------- Layout 1 ASCII 0 Keyboard 0 Movement Mouse Keybinds 0 Fullscreen 2 Font 24/Smallcaps Map View 50x35 Zoom Use 0% Tactical HUD 1 Map Filters NONE Filters NONE Steam 1 RUN: 8243cec6-4373-43c5-ac6a-40cb4c3b4d8f